bitfinex/quotes_ETHUSD_20251213
["timestamp","ask_amount","ask_price","bid_price","bid_amount"]
[1765651890241,1.00163265,3106.3,3106.0,3.21951118]
[1765651890445,0.4546,3106.1,3106.0,3.21951118]
[1765651890846,0.949,3106.1,3106.0,3.21951118]
[1765651892284,0.949,3106.1,3105.9,0.96696056]
[1765651892285,1.25004474,3106.1,3105.9,3.21964993]
[1765651892573,0.196,3106.0,3105.9,3.21964993]
[1765651892959,0.6904,3106.0,3105.8,3.21973964]
[1765651893377,0.452,3105.9,3105.7,3.2198696]
[1765651895481,0.4572,3105.8,3105.7,3.2198696]
[1765651896193,0.9516,3105.8,3105.7,3.2198696]
[1765651897167,0.9516,3105.8,3105.5,6.44217099]
[1765651901296,0.4572,3105.8,3105.5,6.91427099]
[1765651901591,0.4572,3105.8,3105.5,7.70280942]
[1765651901998,0.4572,3105.8,3105.5,7.23070942]
[1765651903293,0.9516,3105.8,3105.5,7.23070942]
[1765651904992,0.4572,3105.8,3105.5,7.23070942]
[1765651912375,0.9516,3105.8,3105.5,7.23070942]
[1765651912795,0.9516,3105.8,3105.5,4.01061604]
[1765651913101,0.9516,3105.8,3105.5,7.23070942]
[1765651915877,0.4572,3105.8,3105.5,7.23070942]
[1765651916175,0.4572,3105.8,3105.5,7.72760942]
[1765651921908,0.4572,3105.8,3105.5,7.23070942]
[1765651922412,0.4572,3105.8,3105.5,6.44217099]
[1765651929113,4.72029058,3106.5,3105.5,6.44217099]
[1765651929114,0.507,3106.1,3105.7,0.4823]
[1765651929417,0.30144546,3106.0,3105.8,0.4823]
[1765651929613,0.30144546,3105.9,3105.8,0.4823]
[1765651930316,0.30144546,3105.9,3105.8,8.42237292]
[1765651930718,0.30144546,3105.9,3105.8,8.91927292]
[1765651933819,0.30144546,3105.9,3105.8,9.35231124]
[1765651941146,0.30144546,3105.9,3105.8,4.63202066]
[1765651941354,0.30144546,3105.9,3105.8,8.91774951]
[1765651941649,0.30144546,3105.9,3105.8,8.42084951]
[1765651942515,0.79874546,3105.9,3105.8,7.93854951]
[1765651946259,0.79874546,3105.9,3105.8,3.21978234]
[1765651946557,1.45904546,3105.9,3105.8,3.21978234]
[1765651947456,1.27524546,3105.9,3105.7,3.21988601]
[1765651947664,0.9738,3105.9,3105.7,3.21988601]
[1765651949063,0.9738,3105.9,3105.8,4.71876717]
[1765651949266,1.27522965,3105.9,3105.8,4.71876717]
[1765651949663,0.79872965,3105.9,3105.8,7.93854951]
[1765651951842,0.79872965,3105.9,3105.8,3.21978234]
[1765651955651,0.30142965,3105.9,3105.8,0.9558]
[1765651957263,0.30146669,3105.9,3105.8,0.9558]
[1765651958583,0.30146669,3105.9,3105.8,4.17558234]
[1765651958763,0.30146669,3105.9,3105.8,5.86674138]
[1765651964980,0.30146669,3105.9,3105.8,5.39674138]
[1765651965484,1.23176669,3105.9,3105.8,3.21978234]
[1765651969990,0.75526669,3105.9,3105.8,3.21978234]
[1765651970999,0.30146669,3105.9,3105.8,3.70558234]
[1765651971209,0.4765,3106.2,3105.8,3.70558234]
[1765651971379,0.30137306,3106.1,3105.8,4.6725242]
[1765651971703,0.30137306,3106.0,3105.8,4.6725242]
[1765651971876,0.4765,3106.2,3105.8,5.1425242]
[1765651972080,0.30136905,3106.1,3105.8,5.1425242]
[1765651972292,0.30136905,3106.0,3105.8,5.1425242]
[1765651972495,0.4765,3106.2,3105.8,5.1425242]
[1765651972694,0.30135609,3106.1,3105.8,5.1425242]
[1765651972894,0.30135609,3106.0,3105.8,5.1425242]
[1765651973097,0.4765,3106.2,3105.8,8.36230654]
[1765651973304,0.30135061,3106.1,3105.9,0.4858]
[1765651973471,0.30135061,3106.0,3105.9,0.4858]
[1765651975099,0.30135061,3106.0,3105.9,3.70547867]
[1765651978080,0.30135061,3106.0,3105.9,4.19867867]
[1765651980503,0.58047529,3106.7,3105.9,8.72874381]
[1765651980689,0.5864,3106.9,3106.3,0.494]
[1765651980690,0.80832435,3106.6,3106.3,0.494]
[1765651981005,0.30132435,3106.5,3106.3,0.494]
[1765651981187,0.30132435,3106.4,3106.3,0.494]
[1765651981387,0.76812435,3106.4,3106.1,4.71846179]
[1765651981692,0.30132435,3106.3,3106.1,4.71846179]
[1765651981999,0.4668,3106.4,3106.2,3.21936771]
[1765651982200,0.4668,3106.2,3105.9,0.76812435]
[1765651982407,0.0756,3106.1,3106.0,3.2194805]
[1765651982600,0.4629,3106.0,3105.5,4.72046179]
[1765651982800,0.0795,3105.9,3105.8,3.21978234]
[1765651982979,0.2604,3105.9,3105.8,3.21978234]
[1765651983186,0.7263,3105.9,3105.8,3.21978234]
[1765651983498,0.7263,3105.9,3105.8,3.72678234]
[1765651985413,0.5454,3105.9,3105.8,3.72678234]
[1765651988835,0.0795,3105.9,3105.8,3.72678234]
[1765651992521,0.5454,3105.9,3105.8,3.72678234]
[1765651993322,0.0795,3105.9,3105.8,3.72678234]
[1765651999825,0.5454,3105.9,3105.8,3.72678234]
[1765652000716,0.0795,3105.9,3105.8,3.72678234]
[1765652011128,0.0795,3105.9,3105.8,0.507]
[1765652011311,0.84857025,3105.9,3105.5,3.22206213]
[1765652011623,0.4598,3105.7,3105.5,3.22206213]
[1765652011829,0.4598,3105.7,3105.6,0.96711954]
[1765652013626,0.4598,3105.7,3105.6,4.18710923]
[1765652020505,0.9278,3105.7,3105.6,4.18710923]
[1765652020811,0.9278,3105.7,3105.6,0.96711954]
[1765652021011,0.9278,3105.7,3105.6,4.18710923]
[1765652021425,0.4598,3105.7,3105.6,4.18710923]
[1765652022439,0.4598,3105.7,3105.6,0.96711954]
[1765652023146,0.4598,3105.7,3105.6,4.18710923]
[1765652024064,4.44855297,3105.7,3105.6,0.96711954]
[1765652024230,5.517779,3105.7,3105.5,0.002]
[1765652024421,0.85216696,3105.6,3105.5,0.002]
[1765652024628,4.07215665,3105.6,3105.5,0.002]
[1765652024831,4.20112255,3105.6,3105.5,0.002]
[1765652025642,0.98113286,3105.6,3105.5,0.002]
[1765652025841,1.55886051,3105.6,3105.5,0.002]
[1765652026042,4.3108502,3105.6,3105.5,0.002]
[1765652026247,4.78159784,3105.6,3105.5,0.002]
[1765652027341,9.90722245,3105.6,3105.5,0.002]
[1765652027516,21.27963645,3105.6,3105.5,0.002]
[1765652027719,12.05461084,3105.6,3105.5,0.002]
[1765652027917,14.10477055,3105.6,3105.5,0.002]
[1765652028518,14.61177055,3105.6,3105.5,0.002]
[1765652029145,14.10477055,3105.6,3105.5,0.002]
[1765652029455,19.33189116,3105.6,3105.5,0.002]
[1765652034452,39.44157816,3105.6,3105.5,0.002]
[1765652036237,0.6515,3104.8,3104.3,0.002]
[1765652036446,0.5517,3104.7,3104.3,3.2233253]
[1765652036636,1.0345,3104.7,3104.3,0.002]
[1765652036836,1.61497529,3104.7,3104.3,0.002]
[1765652037356,2.19545058,3104.7,3104.3,0.002]
[1765652037657,2.9069977,3104.7,3104.3,0.002]
[1765652038226,6.12792081,3104.7,3104.3,0.002]
[1765652041333,6.12792081,3104.7,3104.6,0.4585]
[1765652041334,0.508,3104.7,3104.6,0.4585]
[1765652041674,0.508,3104.7,3104.6,0.002]
[1765652041844,0.508,3104.7,3104.6,0.4585]
[1765652042043,0.508,3104.7,3104.6,0.9268]
[1765652042485,0.508,3104.7,3104.6,0.4585]
[1765652046272,0.49995116,3105.5,3104.6,0.4585]
[1765652046461,1.38736359,3105.1,3104.7,0.4565]
[1765652046663,0.2988883,3105.0,3104.7,0.4565]
[1765652046876,0.2988883,3105.0,3104.7,0.9248]
[1765652047357,0.87936359,3105.0,3104.7,0.9248]
[1765652047558,0.58047529,3105.0,3104.7,0.9248]
[1765652048275,1.08847529,3105.1,3104.9,0.4565]
[1765652048572,0.29900387,3105.0,3104.7,0.4683]
[1765652048975,0.508,3104.9,3104.7,0.4683]
[1765652049162,3.70334827,3105.1,3104.7,0.4683]
[1765652049375,1.38747911,3105.0,3104.7,0.4683]
[1765652049560,1.08847529,3105.0,3104.7,0.4683]
[1765652049758,0.58047529,3105.0,3104.9,0.4565]
[1765652049955,1.38759297,3105.0,3104.9,0.4565]
[1765652050370,1.83919297,3105.0,3104.6,0.4703]
[1765652050573,0.29911768,3104.9,3104.6,0.4703]
[1765652051574,0.29911768,3104.9,3104.8,0.4565]
[1765652051773,0.87959297,3104.9,3104.8,0.4565]
[1765652051974,1.33119297,3104.9,3104.6,0.4703]
[1765652052175,0.29958129,3104.8,3104.6,0.4703]
[1765652052986,0.29958129,3104.8,3104.7,0.4565]
[1765652053280,1.38805658,3104.8,3104.7,0.4565]
[1765652054060,1.38805658,3104.8,3104.6,0.002]
[1765652054382,0.30001838,3104.7,3104.6,0.002]
[1765652054783,0.30001838,3104.7,3104.6,0.4585]
[1765652056158,1.23441838,3104.7,3104.6,0.002]
[1765652056469,1.33209367,3104.7,3104.6,0.002]
[1765652056876,0.75161838,3104.7,3104.6,0.002]
[1765652057562,1.33209367,3104.7,3104.6,0.002]
[1765652061897,1.81489367,3104.7,3104.6,0.002]
[1765652064703,1.33209367,3104.7,3104.6,0.002]
[1765652065189,0.30001838,3104.7,3104.6,0.4572]
[1765652065367,0.30001838,3104.7,3104.6,0.9427]
[1765652067699,0.77751838,3104.7,3104.6,0.002]
[1765652067887,4.50644149,3104.7,3104.6,0.002]
[1765652068194,3.15916698,3104.7,3104.6,0.002]
[1765652068364,1.82039367,3104.7,3104.6,0.002]
[1765652068565,2.32839367,3104.7,3104.6,0.002]
[1765652069299,1.86599367,3104.7,3104.6,0.002]
[1765652069894,5.08691678,3104.7,3104.6,0.002]
[1765652073894,1.86599367,3104.7,3104.6,0.002]
[1765652074386,1.86685346,3104.7,3104.6,0.002]
[1765652074703,2.42186346,3104.7,3104.6,0.002]
[1765652074999,5.64278657,3104.7,3104.6,0.002]
[1765652075203,6.10518657,3104.7,3104.6,0.002]
[1765652075399,0.88135346,3104.7,3104.6,0.4572]
[1765652075604,1.38935346,3104.7,3104.6,0.4572]
[1765652075795,1.38935346,3104.7,3104.6,0.9427]
[1765652076101,0.88135346,3104.7,3104.6,0.4572]
[1765652076312,1.38935346,3104.7,3104.6,4.16372686]
[1765652076501,1.38935346,3104.7,3104.6,4.64776295]
[1765652076904,0.88135346,3104.7,3104.6,4.64776295]
[1765652079384,0.001,3106.0,3104.6,4.64776295]
[1765652079587,0.4624,3105.4,3104.7,0.4855]
[1765652079789,0.80881859,3105.3,3104.7,0.4855]
[1765652080086,0.76321859,3105.2,3104.7,0.4855]
[1765652080291,0.30081859,3105.1,3104.7,0.4855]
[1765652080490,0.30081859,3105.0,3104.7,0.4855]
[1765652080815,0.30081859,3104.9,3104.7,3.70641844]
[1765652080991,0.4624,3105.1,3104.7,3.70641844]
[1765652080992,0.30081859,3104.8,3104.7,3.70641844]
[1765652081191,0.30081859,3104.8,3104.7,4.45037313]
[1765652081509,0.30081859,3104.8,3104.7,1.68465469]
[1765652081708,0.30081859,3104.8,3104.7,4.9055778]
[1765652082214,0.30081859,3104.8,3104.7,1.68465469]
[1765652082911,0.30081859,3104.8,3104.7,0.4552]
[1765652085613,1.24071859,3104.8,3104.6,0.002]
[1765652085820,0.48379909,3104.7,3104.6,0.002]
[1765652085988,0.94619909,3104.7,3104.6,0.002]
[1765652086515,0.48379909,3104.7,3104.6,0.002]
[1765652088622,0.48390676,3104.7,3104.6,0.002]
[1765652090323,0.30070676,3104.7,3104.6,0.4572]
[1765652090526,0.30070676,3104.7,3104.6,4.16372686]
[1765652090734,0.80870676,3104.7,3104.6,4.90241538]
[1765652093297,0.30070676,3104.7,3104.6,4.90241538]
[1765652094626,0.30070676,3104.7,3104.6,0.4572]
[1765652095428,0.77820676,3104.7,3104.6,0.002]
[1765652095604,1.27020676,3104.7,3104.6,0.002]
[1765652096000,0.77820676,3104.7,3104.6,0.002]
[1765652098437,0.30070676,3104.7,3104.6,0.4996]
[1765652099338,0.30070676,3104.7,3104.6,1.72583576]
[1765652101041,0.30070676,3104.7,3104.6,0.9734]
[1765652101228,0.30070676,3104.7,3104.6,0.4996]
[1765652101427,0.80870676,3104.7,3104.6,4.19442686]
[1765652102554,0.30070676,3104.7,3104.6,4.19442686]
[1765652104852,0.30070676,3104.7,3104.6,5.1618458]
[1765652105228,0.30070676,3104.7,3104.6,6.00035263]
[1765652107924,0.77710676,3104.7,3104.6,1.80792577]
[1765652108244,1.26910676,3104.7,3104.6,0.96941894]
[1765652109152,1.26910676,3104.7,3104.6,4.1904458]
[1765652109549,0.77710676,3104.7,3104.6,4.1904458]
[1765652110754,0.30070676,3104.7,3104.6,4.1904458]
[1765652110954,0.30070676,3104.7,3104.6,4.6880458]
[1765652114857,0.30124574,3104.7,3104.6,4.6880458]
[1765652117253,0.77764574,3104.7,3104.6,0.96941894]
[1765652117455,9.79553433,3104.7,3104.6,0.002]
[1765652117668,6.423479,3104.7,3104.6,0.002]
[1765652117852,7.20112474,3104.7,3104.6,0.002]
[1765652120661,7.70912474,3104.7,3104.6,0.002]
[1765652122063,6.439479,3104.7,3104.6,0.002]
[1765652122243,6.916679,3104.7,3104.6,0.002]
[1765652123554,4.57904414,3104.7,3104.6,0.002]
[1765652123865,5.56424414,3104.7,3104.6,0.002]
[1765652127869,2.34332103,3104.7,3104.6,0.002]
[1765652128274,5.56424414,3104.7,3104.6,0.002]
[1765652133883,5.69327077,3104.7,3104.6,0.002]
[1765652134386,7.37933237,3104.7,3104.6,0.002]
[1765652134996,6.87133237,3104.7,3104.6,0.002]
[1765652135497,7.37933237,3104.7,3104.6,0.002]
[1765652139896,6.90213237,3104.7,3104.6,0.002]
[1765652140995,34.36342837,3104.7,3104.6,0.002]
[1765652143195,34.06218263,3104.7,3104.6,0.002]
[1765652143496,34.36265225,3104.7,3104.6,0.002]
[1765652144973,33.40761325,3104.7,3104.6,0.002]
[1765652145295,32.61275225,3104.7,3104.6,0.002]
[1765652145697,30.95153125,3104.7,3104.6,0.002]
[1765652146296,31.66804525,3104.7,3104.6,0.002]
[1765652146499,31.36552725,3104.7,3104.6,0.002]
[1765652148602,31.38108925,3104.7,3104.6,0.002]
[1765652149602,34.15642425,3104.7,3104.6,0.002]
[1765652150503,32.53583925,3104.7,3104.6,0.002]
[1765652150802,34.15833625,3104.7,3104.6,0.002]
[1765652151799,32.5359372,3104.7,3104.6,0.002]
[1765652152579,34.3627502,3104.7,3104.6,0.002]
[1765652157518,39.08925848,3104.7,3104.6,0.002]
[1765652157704,12.11206248,3104.7,3104.6,0.002]
[1765652157903,33.31295448,3104.7,3104.6,0.002]
[1765652159013,39.08925848,3104.7,3104.6,0.002]
[1765652159817,12.11206248,3104.7,3104.6,0.002]
[1765652159990,39.08925848,3104.7,3104.6,0.002]
[1765652160815,12.11206248,3104.7,3104.6,0.002]
[1765652161115,39.08925848,3104.7,3104.6,0.002]
[1765652162318,39.08921758,3104.7,3104.6,0.002]
[1765652164097,12.11202158,3104.7,3104.6,0.002]
[1765652164301,39.08921758,3104.7,3104.6,0.002]
[1765652164491,38.96019095,3104.7,3104.6,0.002]
[1765652170133,38.47609095,3104.7,3104.6,0.002]
[1765652170347,38.47609095,3104.7,3103.3,0.4634]
[1765652170348,26.977196,3104.1,3103.3,0.4634]
[1765652170496,18.64761624,3104.1,3103.3,0.002]
[1765652170701,18.64761624,3104.1,3103.7,0.4614]
[1765652171000,19.10191624,3104.1,3103.4,0.4614]
[1765652171303,34.40371024,3104.1,3103.3,0.002]
[1765652171518,34.40371024,3104.1,3103.3,0.4634]
[1765652171743,34.86511024,3104.1,3103.3,0.4634]
[1765652171942,36.55117184,3104.1,3103.3,0.4634]
[1765652172136,39.77271753,3104.1,3103.3,0.4634]
[1765652172342,39.77271753,3104.1,3103.4,0.4614]
[1765652172644,39.77271753,3104.1,3103.3,0.002]
[1765652172844,39.77271753,3104.1,3103.6,0.4614]
[1765652173544,39.77271753,3104.1,3103.3,0.002]
[1765652173742,0.405504,3103.8,3103.3,0.002]
[1765652173955,4.72650828,3103.4,3103.3,0.002]
[1765652174137,5.02703495,3103.4,3103.3,0.4634]
[1765652174337,8.24930729,3103.4,3103.3,0.9468]
[1765652193051,3.52279901,3103.4,3103.3,0.9468]
[1765652196357,3.52279901,3103.4,3103.3,0.4854]
[1765652208888,0.30087573,3103.4,3103.3,0.4854]
[1765652213498,3.52314807,3103.4,3103.3,0.4854]
[1765652213800,3.52314807,3103.4,3103.3,0.9498]
[1765652214598,3.52314807,3103.4,3103.3,0.4854]
[1765652216097,3.99104807,3103.4,3103.3,0.002]
[1765652216298,9.49981732,3103.4,3103.3,0.002]
[1765652216509,29.05296832,3103.4,3103.3,0.002]
[1765652216676,28.53001632,3103.4,3103.3,0.002]
[1765652217172,28.65779161,3103.4,3103.3,0.002]
[1765652217374,29.11049161,3103.4,3103.3,0.002]
[1765652218198,29.51599561,3103.4,3103.3,0.002]
[1765652218501,37.91569261,3103.4,3103.3,0.002]
[1765652218701,38.0447792,3103.4,3103.3,0.002]
[1765652220290,11.0675832,3103.4,3103.3,0.002]
[1765652220494,38.0447792,3103.4,3103.3,0.002]
[1765652225106,37.1865752,3103.4,3103.3,0.002]
[1765652225309,25.03086551,3103.4,3103.3,0.4557]
[1765652225608,25.38592395,3103.4,3103.3,0.9141]
[1765652225812,20.53059936,3103.4,3103.3,0.4557]
[1765652226013,20.53059936,3103.4,3103.3,0.9141]
[1765652226728,23.96236736,3103.4,3103.3,0.9141]
[1765652227035,4.10362336,3103.4,3103.3,0.9141]
[1765652227326,4.03114807,3103.4,3103.3,0.9141]
[1765652227614,4.61162336,3103.4,3103.3,0.9141]
[1765652233492,4.10362336,3103.4,3103.3,0.9141]
[1765652233693,4.61162336,3103.4,3103.3,0.9141]
[1765652236616,4.10362336,3103.4,3103.3,0.9141]
[1765652236819,4.61162336,3103.4,3103.3,0.9141]
[1765652243536,4.61162336,3103.4,3103.3,0.4557]
[1765652243736,5.07952336,3103.4,3103.3,0.002]
[1765652246741,4.57152336,3103.4,3103.3,0.002]
[1765652246935,4.61162336,3103.4,3103.3,0.002]
[1765652247419,5.10592336,3103.4,3103.3,0.002]
[1765652250135,11.03875538,3103.4,3103.3,0.002]
[1765652250538,11.52605538,3103.4,3103.3,0.002]
[1765652252797,11.93155938,3103.4,3103.3,0.002]
[1765652252914,38.90875538,3103.4,3103.3,0.002]
[1765652253117,39.40575538,3103.4,3103.3,0.002]
[1765652258022,39.40746514,3103.4,3103.3,0.002]
[1765652259645,44.13825172,3103.4,3103.3,0.002]
[1765652260834,39.40746514,3103.4,3103.3,0.002]
[1765652261449,44.13825172,3103.4,3103.3,0.002]
[1765652261654,26.977196,3102.6,3102.4,0.002]
[1765652261852,34.4127376,3102.5,3102.4,0.002]
[1765652262152,26.62757302,3102.5,3102.4,0.002]
[1765652262348,26.75669879,3102.5,3102.4,0.002]
[1765652262551,29.81107679,3102.5,3102.4,0.002]
[1765652262852,31.49713839,3102.5,3102.4,0.002]
[1765652263554,34.72034548,3102.5,3102.4,0.002]
[1765652263728,34.30474548,3102.5,3102.4,0.002]
[1765652264057,37.53658058,3102.5,3102.4,0.002]
[1765652264357,42.26976768,3102.5,3102.4,0.002]
[1765652264524,44.18671968,3102.5,3102.4,0.002]
[1765652268575,34.96102458,3102.5,3102.4,0.002]
[1765652268778,29.03845058,3102.5,3102.4,0.002]
[1765652269780,31.63651058,3102.5,3102.4,0.002]
[1765652270891,30.36064358,3102.5,3102.4,0.4809]
[1765652271690,32.32984658,3102.5,3102.4,0.4809]
[1765652271875,26.52091158,3102.5,3102.4,0.4809]
[1765652272692,38.54363258,3102.5,3102.4,0.4809]
[1765652272915,38.04101558,3102.5,3102.4,0.4809]
[1765652273708,36.89634358,3102.5,3102.4,0.4809]
[1765652273895,28.38795458,3102.5,3102.4,0.4809]
[1765652274195,12.44064821,3102.5,3102.4,0.4809]
[1765652274400,12.94864821,3102.5,3102.4,0.9779]
[1765652274982,12.94864821,3102.5,3102.4,0.4809]
[1765652276012,12.94864821,3102.5,3102.4,0.9525]
[1765652276385,12.44064821,3102.5,3102.4,0.4809]
[1765652276609,12.94864821,3102.5,3102.4,0.9525]
[1765652283687,7.70746111,3102.5,3102.4,0.9525]
[1765652283915,8.21546111,3102.5,3102.4,0.9525]
[1765652285517,1.38935102,3102.5,3102.4,0.9525]
[1765652286407,0.88135102,3102.5,3102.4,0.9525]
[1765652286705,1.38935102,3102.5,3102.4,0.9525]
[1765652288113,0.80887573,3102.5,3102.4,0.9525]
[1765652288415,1.38935102,3102.5,3102.4,0.9525]
[1765652288800,0.80887573,3102.5,3102.4,0.9525]
[1765652289011,1.38935102,3102.5,3102.4,0.9525]
[1765652289190,0.88135102,3102.5,3102.4,0.9525]
[1765652289909,0.30087573,3102.5,3102.4,0.9525]
[1765652290104,0.88135102,3102.5,3102.4,0.9525]
[1765652291014,4.10455811,3102.5,3102.4,0.9525]
[1765652292012,0.88135102,3102.5,3102.4,0.9525]
[1765652292701,0.30087573,3102.5,3102.4,0.9525]
[1765652294204,0.30087573,3102.5,3102.4,1.37010048]
[1765652294506,1.08847529,3102.7,3102.4,1.37010048]
[1765652294708,1.08847529,3102.7,3102.6,0.4779]
[1765652295022,1.38859248,3102.7,3102.6,0.4779]
[1765652295185,1.38859248,3102.7,3102.6,0.9495]
[1765652299521,0.80811719,3102.7,3102.6,0.9495]
[1765652300096,0.30011719,3102.7,3102.6,1.36697246]
[1765652300322,0.80811719,3102.9,3102.6,1.36697246]
[1765652300496,0.30011719,3102.8,3102.7,0.4716]
[1765652300896,0.30011719,3102.8,3102.7,0.9495]
[1765652301327,0.29995179,3102.8,3102.7,0.9495]
[1765652302398,0.508,3102.9,3102.7,0.9495]
[1765652302599,0.508,3102.9,3102.4,0.002]
[1765652302600,0.508,3102.9,3102.8,0.9495]
[1765652302932,0.80794032,3102.9,3102.8,0.9495]
[1765652304752,0.80794032,3102.9,3102.8,0.9495]
[1765652306650,0.80790709,3102.9,3102.8,0.9495]
[1765652310562,0.80790709,3102.9,3102.8,0.4779]
[1765652310751,1.23430709,3102.9,3102.5,4.3227]
[1765652310951,0.508,3102.9,3102.8,0.4711]
[1765652311152,4.61130462,3102.9,3102.8,0.4711]
[1765652311354,1.38851304,3102.9,3102.8,0.4711]
[1765652312468,4.61130462,3102.9,3102.8,0.4711]
[1765652314364,1.38851304,3102.9,3102.8,0.4711]
[1765652316065,1.38851304,3102.9,3102.8,0.9638]
[1765652321080,1.38851304,3102.9,3102.8,0.4711]
[1765652321282,4.61130462,3102.9,3102.8,0.4711]
[1765652324085,1.38851304,3102.9,3102.8,0.4711]
[1765652324785,4.61130462,3102.9,3102.8,0.4711]
[1765652327965,1.38851304,3102.9,3102.8,0.4711]
[1765652329384,4.61130462,3102.9,3102.8,0.4711]
[1765652329589,5.03770462,3102.9,3102.6,0.4927]
[1765652329777,0.30003775,3102.8,3102.6,0.4927]
[1765652329976,0.30003775,3102.7,3102.6,0.4927]
[1765652330675,0.30003775,3102.7,3102.6,0.9638]
[1765652342205,0.30003775,3102.7,3102.6,4.1869032]
[1765652343105,0.30003775,3102.7,3102.6,4.92812365]
[1765652345496,0.58047529,3103.4,3102.6,4.92812365]
[1765652345805,0.30082168,3103.3,3102.9,3.22279158]
[1765652346104,0.30082168,3103.2,3102.9,3.22279158]
[1765652346407,0.30082168,3103.1,3103.0,1.43751522]
[1765652346608,0.30082168,3103.1,3103.0,1.76412331]
[1765652346780,0.30082168,3103.1,3103.0,2.25582331]
[1765652346980,0.508,3103.3,3103.0,2.25582331]
[1765652347208,0.30065921,3103.2,3103.0,1.92921522]
[1765652347409,0.30065921,3103.1,3103.0,1.92921522]
[1765652347609,0.30065921,3103.1,3103.0,0.9613]
[1765652347917,0.30065921,3103.1,3103.0,1.54177529]
[1765652348312,0.30065921,3103.1,3103.0,4.76446301]
[1765652350204,0.508,3103.4,3103.0,4.76446301]
[1765652350403,0.58047529,3103.5,3103.3,0.4917]
[1765652350704,0.80839042,3103.4,3103.3,0.4917]
[1765652352033,0.30039042,3103.4,3103.3,0.9613]
[1765652352620,0.1876,3104.2,3103.3,7.6177767]
[1765652352827,0.80834261,3103.9,3103.4,0.9613]
[1765652353008,0.80834261,3103.9,3103.5,0.4696]
[1765652353009,0.30034261,3103.8,3103.5,0.4696]
[1765652353209,0.508,3103.9,3103.7,0.4917]
[1765652353427,0.3002344,3103.8,3103.7,0.4917]
[1765652357824,0.001,3104.0,3103.7,7.87436803]
[1765652358142,0.001,3104.0,3103.9,0.4917]
[1765652358513,0.001,3104.0,3103.9,1.09030708]
[1765652358940,0.001,3104.0,3103.9,4.31206035]
[1765652362242,0.001,3104.0,3103.9,5.41206035]
[1765652362429,0.001,3104.0,3103.9,6.69537319]
[1765652366660,0.001,3104.0,3103.9,6.22577319]
[1765652369166,0.001,3104.0,3103.9,6.69977319]
[1765652374174,0.001,3104.0,3103.9,6.22577319]
[1765652374374,0.001,3104.0,3103.9,6.69977319]
[1765652380492,0.001,3104.0,3103.9,6.22577319]
[1765652380785,0.001,3104.0,3103.9,5.12577319]
[1765652387373,0.4288,3104.0,3103.9,3.35076035]
[1765652390783,0.9094,3104.0,3103.9,3.35076035]
[1765652390956,0.4288,3104.0,3103.9,3.35076035]
[1765652391156,0.9094,3104.0,3103.9,3.35076035]
[1765652392685,0.4288,3104.0,3103.9,3.35076035]
[1765652395259,0.9041,3104.0,3103.9,3.35076035]
[1765652396478,0.4288,3104.0,3103.9,3.35076035]
[1765652397703,0.9041,3104.0,3103.9,3.35076035]
[1765652401386,6.4379339,3104.0,3103.9,0.12900708]
[1765652401588,7.08182729,3104.0,3103.7,3.22194645]
[1765652401791,0.95942397,3103.9,3103.7,3.22194645]
[1765652401990,0.32012397,3103.8,3103.7,3.22194645]
[1765652402186,0.495,3103.8,3103.7,3.22194645]
[1765652402393,0.9843,3104.0,3103.7,7.10290733]
[1765652402589,0.30033253,3103.9,3103.7,7.10290733]
[1765652402893,0.9843,3104.0,3103.7,7.10290733]
[1765652403083,0.30033281,3103.9,3103.7,7.10290733]
[1765652403285,0.9843,3104.0,3103.7,7.10290733]
[1765652403482,0.30027574,3103.9,3103.7,7.10290733]
[1765652403702,0.001,3104.0,3103.9,0.451]
[1765652404173,0.001,3104.0,3103.9,0.9482]
[1765652404508,0.001,3104.0,3103.9,1.4572]
[1765652404709,0.001,3104.0,3103.9,4.67895327]
[1765652404908,0.001,3104.0,3103.9,6.3348094]
[1765652407306,0.001,3104.0,3103.9,11.06021933]
[1765652407713,0.001,3104.0,3103.9,6.3348094]
[1765652411219,0.001,3104.0,3103.9,7.4348094]
[1765652416515,0.001,3104.0,3103.9,6.9376094]
[1765652416716,0.001,3104.0,3103.6,3.83]
[1765652416717,5.6435714,3104.0,3103.6,3.83]
[1765652416920,0.6253,3103.7,3103.6,7.05200985]
[1765652417440,1.1006,3103.7,3103.6,7.05200985]
[1765652418142,1.1006,3103.7,3103.6,3.22200985]
[1765652418705,1.1006,3103.7,3103.5,3.22216851]
[1765652418932,0.6414,3103.7,3103.5,3.91424186]
[1765652419246,0.4753,3103.7,3103.5,3.91424186]
[1765652419537,0.4753,3103.9,3103.5,7.13641037]
[1765652420042,0.4753,3103.9,3103.5,7.63361037]
[1765652420736,0.4753,3103.9,3103.5,7.13641037]
[1765652420917,0.659,3103.9,3103.5,7.13641037]
[1765652421118,0.4753,3103.8,3103.5,7.13641037]
[1765652425757,0.001,3104.0,3103.5,7.13641037]
[1765652426126,0.4753,3104.0,3103.5,7.60221037]
[1765652427073,0.001,3104.0,3103.9,0.4826]
[1765652427859,0.001,3104.0,3103.9,0.9579]
[1765652429163,0.001,3104.0,3103.9,4.17965327]
[1765652431570,0.001,3104.0,3103.9,4.67115327]
[1765652431772,0.001,3104.0,3103.9,5.41349435]
[1765652436157,0.001,3104.0,3103.9,4.92199435]
[1765652438192,0.9196,3104.0,3103.9,4.43939435]
[1765652441703,0.4636,3104.0,3103.9,4.43939435]
[1765652441916,0.001,3104.0,3103.9,4.92639435]
[1765652442107,0.001,3104.0,3103.9,5.41789435]
[1765652447721,0.001,3104.0,3103.9,4.92639435]
[1765652448108,0.001,3104.0,3103.9,5.41789435]
[1765652459952,0.001,3104.0,3103.9,4.92639435]
[1765652460124,0.9199,3104.0,3103.9,3.69705327]
[1765652464663,0.483,3104.0,3103.9,3.69705327]
[1765652467179,0.001,3104.0,3103.9,4.68555327]
[1765652474497,0.9199,3104.0,3103.9,3.69705327]
[1765652475354,0.9199,3104.0,3103.9,0.4753]
[1765652475560,0.9199,3104.0,3103.9,3.69705327]